fUSD/lending_fUSD_20250127
["ID","MTS","AMOUNT","RATE_DAILY","PERIOD"]
[350568069,1737965485821,-827.97,0.00011995,2]
[350568070,1737965485833,-827.97,0.00011995,2]
[350568071,1737965485843,-828.00518215,0.00011995,2]
[350568072,1737965485852,-1193.97,0.00011995,2]
[350568073,1737965485862,-1193.97,0.00011995,2]
[350568074,1737965485872,-1193.97,0.00011995,2]
[350568075,1737965485882,-1193.97,0.00011995,2]
[350568076,1737965485893,-1194.02112101,0.00011995,2]
[350568077,1737965485902,-841.29,0.00011995,2]
[350568078,1737965485912,-841.29,0.00011995,2]
[350568079,1737965485922,-841.29,0.00011995,2]
[350568080,1737965485932,-841.29,0.00011995,2]
[350568081,1737965485941,-841.49741161,0.00011995,2]
[350568082,1737965485951,-1330.82,0.00011995,2]
[350568083,1737965485961,-1330.82,0.00011995,2]
[350568084,1737965485970,-1330.82,0.00011995,2]
[350568085,1737965485980,-1330.82,0.00011995,2]
[350568086,1737965485990,-1330.82,0.00011995,2]
[350568087,1737965485999,-1330.854163,0.00011995,2]
[350568088,1737965486009,-623.54,0.00011995,2]
[350568089,1737965486019,-623.54,0.00011995,2]
[350568090,1737965486029,-851.8,0.00011995,2]
[350568091,1737965486038,-851.8,0.00011995,2]
[350568092,1737965486048,-851.8,0.00011995,2]
[350568093,1737965486057,-851.8,0.00011995,2]
[350568094,1737965486067,-852.0385511,0.00011995,2]
[350568095,1737965486076,-500.0,0.00011995,2]
[350568096,1737965486089,-500.0,0.00011995,2]
[350568097,1737965486098,-500.0,0.00011995,2]
[350568098,1737965486107,-500.0,0.00011995,2]
[350568099,1737965486116,-633.47,0.00011995,2]
[350568100,1737965486125,-633.47,0.00011995,2]
[350568101,1737965486135,-633.47,0.00011995,2]
[350568102,1737965486144,-633.47,0.00011995,2]
[350568103,1737965486154,-633.58202738,0.00011995,2]
[350568104,1737965486164,-500.0,0.00011995,2]
[350568105,1737965486173,-500.0,0.00011995,2]
[350568106,1737965486182,-549.81446963,0.00011995,2]
[350568107,1737965486191,-1019.32,0.00011995,2]
[350568108,1737965486200,-1019.32,0.00011995,2]
[350568109,1737965486210,-1019.32,0.00011995,2]
[350568110,1737965486219,-1019.32,0.00011995,2]
[350568111,1737965486228,-1019.53685314,0.00011995,2]
[350568112,1737965486238,-500.0,0.00011995,2]
[350568113,1737965486247,-500.0,0.00011995,2]
[350568114,1737965486257,-332.86748704,0.00011995,2]
[350568115,1737965486265,-550.36,0.00011995,2]
[350568116,1737965486274,-550.36,0.00011995,2]
[350568117,1737965486283,-550.36,0.00011995,2]
[350568118,1737965486292,-550.36,0.00011995,2]
[350568119,1737965486302,-550.42853475,0.00011995,2]
[350568120,1737965486311,-564.37,0.00011995,2]
[350568121,1737965486320,-564.37,0.00011995,2]
[350568122,1737965486331,-564.37,0.00011995,2]
[350568123,1737965486340,-770.46,0.00011995,2]
[350568124,1737965486350,-564.37,0.00011995,2]
[350568125,1737965486359,-770.46,0.00011995,2]
[350568126,1737965486369,-564.39452956,0.00011995,2]
[350568127,1737965486379,-770.46,0.00011995,2]
[350568128,1737965486388,-770.46,0.00011995,2]
[350568129,1737965486398,-770.56257893,0.00011995,2]
[350568130,1737965486407,-500.0,0.00011995,2]
[350568131,1737965486416,-404.37561276,0.00011995,2]
[350568132,1737965486426,-536.42,0.00011995,2]
[350568133,1737965486435,-536.42,0.00011995,2]
[350568134,1737965486444,-536.42,0.00011995,2]
[350568135,1737965486454,-536.42,0.00011995,2]
[350568136,1737965486464,-536.45736798,0.00011995,2]
[350568137,1737965486473,-500.0,0.00011995,2]
[350568138,1737965486483,-500.0,0.00011995,2]
[350568139,1737965486492,-551.71032686,0.00011995,2]
[350568140,1737965486502,-730.65,0.00011995,2]
[350568141,1737965486512,-730.65,0.00011995,2]
[350568142,1737965486524,-730.65,0.00011995,2]
[350568143,1737965486534,-730.65,0.00011995,2]
[350568144,1737965486544,-730.85851368,0.00011995,2]
[350568145,1737965486553,-942.7,0.00011995,2]
[350568146,1737965486563,-942.7,0.00011995,2]
[350568147,1737965486574,-942.7,0.00011995,2]
[350568148,1737965486587,-942.7,0.00011995,2]
[350568149,1737965486598,-942.87794076,0.00011995,2]
[350568150,1737965486608,-505.33032798,0.00011996,2]
[350568151,1737965486622,-311.1667911,0.00011996,2]
[350568152,1737965486635,-674.43149567,0.00011996,2]
[350568153,1737965486645,-1053.10477253,0.00011996,3]
[350568154,1737965486658,-500.0,0.00011996,2]
[350568155,1737965486669,-500.0,0.00011996,2]
[350568156,1737965486681,-501.64324178,0.00011996,2]
[350568157,1737965486691,-300.0,0.00011996,2]
[350568158,1737965486702,-504.0770348,0.00011996,2]
[350568159,1737965486712,-500.0,0.00011996,2]
[350568160,1737965486722,-500.0,0.00011996,2]
[350568161,1737965486734,-500.0,0.00011996,2]
[350568162,1737965486743,-500.0,0.00011996,2]
[350568163,1737965486752,-500.0,0.00011996,2]
[350568164,1737965486762,-500.0,0.00011996,2]
[350568165,1737965486771,-500.0,0.00011996,2]
[350568166,1737965486781,-500.0,0.00011996,2]
[350568167,1737965486790,-500.0,0.00011996,2]
[350568168,1737965486800,-500.0,0.00011996,2]
[350568169,1737965486811,-500.0,0.00011996,2]
[350568170,1737965486821,-359.76158723,0.00011996,2]
[350568171,1737965486833,-500.0,0.00011996,2]
[350568172,1737965486843,-500.0,0.00011996,2]
[350568173,1737965486852,-500.0,0.00011996,2]
[350568174,1737965486861,-500.0,0.00011996,2]
[350568175,1737965486869,-500.0,0.00011996,2]
[350568176,1737965486878,-453.97475578,0.00011996,2]
[350568177,1737965486887,-500.0,0.00011996,2]
[350568178,1737965486896,-500.0,0.00011996,2]
[350568179,1737965487067,-500.0,0.00011996,2]
[350568180,1737965487076,-500.0,0.00011996,2]
[350568181,1737965487087,-500.0,0.00011996,2]
[350568182,1737965487097,-500.0,0.00011996,2]
[350568183,1737965487107,-500.0,0.00011996,2]
[350568184,1737965487116,-500.0,0.00011996,2]
[350568185,1737965487125,-500.0,0.00011996,2]
[350568186,1737965487134,-500.0,0.00011996,2]
[350568187,1737965487144,-500.0,0.00011996,2]
[350568188,1737965487153,-500.0,0.00011996,2]
[350568189,1737965487163,-500.0,0.00011996,2]
[350568190,1737965487172,-389.10883899,0.00011996,2]
[350568191,1737965487181,-500.0,0.00011996,2]
[350568192,1737965487189,-317.33672624,0.00011996,2]
[350568193,1737965487205,-182.66327376,0.00011996,2]
[350568194,1737965487214,-500.0,0.00011996,2]
[350568195,1737965487223,-500.0,0.00011996,2]
[350568196,1737965487232,-287.04328239,0.00011996,2]
[350568197,1737965487241,-88.60231385,0.00011996,2]
[350568198,1737965487255,-411.39768615,0.00011996,2]
[350568199,1737965487264,-500.0,0.00011996,2]
[350568200,1737965487273,-500.0,0.00011996,2]
[350568201,1737965487282,-500.0,0.00011996,2]
[350568202,1737965487290,-500.0,0.00011996,2]
[350568203,1737965487299,-500.0,0.00011996,2]
[350568204,1737965487308,-500.0,0.00011996,2]
[350568205,1737965487317,-500.0,0.00011996,2]
[350568206,1737965487327,-500.0,0.00011996,2]
[350568207,1737965487339,-500.0,0.00011996,2]
[350568208,1737965487349,-500.0,0.00011996,2]
[350568209,1737965487358,-500.0,0.00011996,2]
[350568210,1737965487367,-500.0,0.00011996,2]
[350568211,1737965487376,-500.0,0.00011996,2]
[350568212,1737965487386,-514.05634555,0.00011996,2]
[350568213,1737965487396,-691.7,0.00011996,2]
[350568214,1737965487405,-691.7,0.00011996,2]
[350568215,1737965487415,-500.0,0.00011996,2]
[350568216,1737965487427,-691.7,0.00011996,2]
[350568217,1737965487437,-500.0,0.00011996,2]
[350568218,1737965487446,-691.7,0.00011996,2]
[350568219,1737965487456,-500.0,0.00011996,2]
[350568220,1737965487465,-691.7,0.00011996,2]
[350568221,1737965487474,-500.0,0.00011996,2]
[350568222,1737965487483,-691.7,0.00011996,2]
[350568223,1737965487493,-691.7,0.00011996,2]
[350568224,1737965487502,-691.7,0.00011996,2]
[350568225,1737965487511,-632.71,0.00011996,2]
[350568226,1737965487521,-632.71,0.00011996,2]
[350568227,1737965487530,-632.71,0.00011996,2]
[350568228,1737965487539,-234.1140355,0.00011996,2]
[350568229,1737965487551,-398.5959645,0.00011996,2]
[350568230,1737965487560,-632.71,0.00011996,2]
[350568231,1737965487570,-632.71,0.00011996,2]
[350568232,1737965487579,-632.71,0.00011996,2]
[350568233,1737965487592,-632.71,0.00011996,2]
[350568234,1737965487602,-500.0,0.00011996,2]
[350568235,1737965487610,-500.0,0.00011996,2]
[350568236,1737965487620,-500.0,0.00011996,2]
[350568237,1737965487629,-500.0,0.00011996,2]
[350568238,1737965487638,-500.0,0.00011996,2]
[350568239,1737965487647,-500.0,0.00011996,2]
[350568240,1737965487656,-500.0,0.00011996,2]
[350568241,1737965487665,-504.38912972,0.00011996,2]
[350568242,1737965487674,-500.0,0.00011996,2]
[350568243,1737965487682,-500.0,0.00011996,2]
[350568244,1737965487691,-500.0,0.00011996,2]
[350568245,1737965487700,-500.0,0.00011996,2]
[350568246,1737965487709,-637.03569007,0.00011996,2]
[350568247,1737965487719,-500.0,0.00011996,2]
[350568248,1737965487730,-500.0,0.00011996,2]
[350568249,1737965487740,-500.0,0.00011996,2]
[350568250,1737965487749,-511.57728674,0.00011996,2]
[350568251,1737965487759,-500.0,0.00011996,2]
[350568252,1737965487768,-500.0,0.00011996,2]
[350568253,1737965487777,-500.0,0.00011996,2]
[350568254,1737965487786,-331.31616517,0.00011996,2]
[350568255,1737965487796,-500.0,0.00011996,2]
[350568256,1737965487806,-500.0,0.00011996,2]
[350568257,1737965487815,-500.0,0.00011996,2]
[350568258,1737965487824,-500.0,0.00011996,2]
[350568259,1737965487837,-500.0,0.00011996,2]
[350568260,1737965487846,-500.0,0.00011996,2]
[350568261,1737965487855,-500.0,0.00011996,2]
[350568262,1737965487864,-500.0,0.00011996,2]
[350568263,1737965487874,-500.0,0.00011996,2]
[350568264,1737965487884,-522.08676536,0.00011996,2]
[350568265,1737965487893,-500.0,0.00011996,2]
[350568266,1737965487903,-477.80979236,0.00011996,2]
[350568267,1737965487918,-22.19020764,0.00011996,2]
[350568268,1737965487927,-500.0,0.00011996,2]
[350568269,1737965487936,-500.0,0.00011996,2]
[350568270,1737965487945,-500.0,0.00011996,2]
[350568271,1737965487954,-500.0,0.00011996,2]
[350568272,1737965487963,-449.46973777,0.00011996,2]
[350568273,1737965487972,-474.89085459,0.00011996,2]
[350568283,1737965846020,2269.8094607,0.00022,120]
[350568284,1737965977014,3916.0,0.00014211,30]
[350568285,1737966044198,1045.06,8.921e-05,2]
[350569744,1737966632024,-19871.91600001,0.0001,2]
[350569745,1737966632187,-465.4086857,0.0001,2]
[350569746,1737966632244,-45001.48475514,0.0001,2]
[350569747,1737966632253,-534.21211488,0.00010037,2]
[350569748,1737966632263,-170.34,0.00010137,2]
[350569749,1737966632273,-1000.0,0.00010388,2]
[350569750,1737966632283,-1952.3236,0.000107,2]
[350569751,1737966632292,-1564.8093,0.000107,2]
[350569752,1737966632302,-597221.93543245,0.000108,2]
[350569753,1737966632311,-324.11536804,0.000108,2]
[350569754,1737966632320,-370.85,0.00010815,2]
[350569755,1737966632329,-250.0,0.00010833,2]
[350569756,1737966632339,-170.07,0.00010845,2]
[350569757,1737966632348,-311.92,0.00010851,2]
[350569758,1737966632357,-179.22691947,0.000109,2]
[350569760,1737966632367,-503.81658871,0.00010956,2]
[350569762,1737966632376,-500.0,0.00010956,2]
[350569764,1737966632385,-500.0,0.00010956,2]
[350569766,1737966632394,-500.0,0.00010956,2]
[350569769,1737966632408,-500.0,0.00010956,2]
[350569771,1737966632417,-500.0,0.00010956,2]
[350569773,1737966632426,-517.76214273,0.00010956,2]
[350569775,1737966632436,-503.73114294,0.00010956,2]
[350569777,1737966632446,-183.95555617,0.00010956,2]
[350569779,1737966632455,-31735.40910155,0.00010957,2]
[350569781,1737966632465,-500.0,0.00010958,2]
[350569783,1737966632475,-500.0,0.00010958,2]
[350569785,1737966632484,-500.0,0.00010958,2]
[350569787,1737966632493,-500.0,0.00010958,2]
[350569789,1737966632503,-500.0,0.00010958,2]
[350569791,1737966632514,-500.0,0.00010958,2]
[350569793,1737966632523,-500.0,0.00010958,2]
[350569795,1737966632532,-500.0,0.00010958,2]
[350569797,1737966632542,-500.0,0.00010958,2]
[350569799,1737966632551,-500.0,0.00010958,2]
[350569801,1737966632561,-500.0,0.00010958,2]
[350569803,1737966632571,-500.0,0.00010958,2]
[350569805,1737966632583,-500.0,0.00010958,2]
[350569807,1737966632592,-500.0,0.00010958,2]
[350569809,1737966632600,-620.99,0.00010958,2]
[350569811,1737966632609,-620.99,0.00010958,2]
[350569813,1737966632619,-500.0,0.00010958,2]
[350569815,1737966632628,-500.0,0.00010958,2]
[350569817,1737966632637,-500.0,0.00010958,2]
[350569819,1737966632646,-500.0,0.00010958,2]
[350569820,1737966632655,-500.0,0.00010958,2]
[350569822,1737966632664,-500.0,0.00010958,2]
[350569824,1737966632674,-457.13853328,0.00010958,2]
[350569826,1737966632683,-500.0,0.00010958,2]
[350569829,1737966632692,-500.0,0.00010958,2]
[350569831,1737966632702,-500.0,0.00010958,2]
[350569833,1737966632711,-500.0,0.00010958,2]
[350569835,1737966632720,-631.67,0.00010958,2]
[350569837,1737966632730,-631.67,0.00010958,2]
[350569839,1737966632739,-500.0,0.00010958,2]
[350569841,1737966632749,-500.0,0.00010958,2]
[350569842,1737966632761,-500.0,0.00010958,2]
[350569844,1737966632771,-500.0,0.00010958,2]
[350569846,1737966632780,-500.0,0.00010958,2]
[350569848,1737966632789,-500.0,0.00010958,2]
[350569849,1737966632799,-500.0,0.00010958,2]
[350569850,1737966632808,-500.0,0.00010958,2]
[350569851,1737966632816,-500.0,0.00010958,2]
[350569852,1737966632825,-500.0,0.00010958,2]
[350569853,1737966632834,-500.0,0.00010958,2]
[350569854,1737966632843,-500.0,0.00010958,2]
[350569855,1737966632852,-500.0,0.00010958,2]
[350569856,1737966632861,-500.0,0.00010958,2]
[350569858,1737966632870,-500.0,0.00010958,2]
[350569859,1737966632879,-500.0,0.00010958,2]
[350569861,1737966632888,-500.0,0.00010958,2]
[350569863,1737966632897,-500.0,0.00010958,2]
[350569865,1737966632907,-500.0,0.00010958,2]
[350569867,1737966632916,-500.0,0.00010958,2]
[350569869,1737966632925,-500.0,0.00010958,2]
[350569871,1737966632935,-500.0,0.00010958,2]
[350569873,1737966632944,-394.65257014,0.00010958,2]
[350569875,1737966632953,-500.0,0.00010958,2]
[350569877,1737966632963,-500.0,0.00010958,2]
[350569879,1737966632972,-500.0,0.00010958,2]
[350569881,1737966632981,-500.0,0.00010958,2]
[350569883,1737966632991,-500.0,0.00010958,2]
[350569885,1737966633001,-501.47202,0.00010958,2]
[350569887,1737966633012,-500.0,0.00010958,2]
[350569890,1737966633021,-500.0,0.00010958,2]
[350569892,1737966633031,-1739.14,0.00010958,2]
[350569893,1737966633041,-1739.14,0.00010958,2]
[350569896,1737966633050,-500.0,0.00010958,2]
[350569898,1737966633060,-500.0,0.00010958,2]
[350569899,1737966633074,-500.0,0.00010958,2]
[350569902,1737966633083,-513.52855399,0.00010958,2]
[350569904,1737966633095,-503.13798847,0.00010958,2]
[350569905,1737966633104,-500.0,0.00010958,2]
[350569907,1737966633114,-158.28945552,0.00010958,2]
[350569909,1737966633123,-500.0,0.00010958,2]
[350569911,1737966633133,-500.0,0.00010958,2]
[350569913,1737966633143,-500.0,0.00010958,2]
[350569915,1737966633154,-500.0,0.00010958,2]
[350569917,1737966633164,-500.0,0.00010958,2]
[350569919,1737966633174,-502.5571888,0.00010958,2]
[350569921,1737966633183,-500.0,0.00010958,2]
[350569923,1737966633193,-500.0,0.00010958,2]
[350569925,1737966633203,-768.66,0.00010958,2]
[350569927,1737966633213,-768.66,0.00010958,2]
[350569929,1737966633222,-500.0,0.00010958,2]
[350569931,1737966633232,-500.0,0.00010958,2]
[350569933,1737966633240,-500.0,0.00010958,2]
[350569935,1737966633250,-500.0,0.00010958,2]
[350569937,1737966633261,-1300.0,0.00010972,2]
[350569939,1737966633271,-500.0,0.00010972,2]
[350569941,1737966633281,-254.45,0.00010972,2]
[350569943,1737966633290,-250.95,0.00010972,2]
[350569945,1737966633299,-252.79,0.00010972,2]
[350569947,1737966633308,-253.76,0.00010972,2]
[350569949,1737966633318,-247.77,0.00010972,2]
[350569951,1737966633327,-250.49,0.00010972,2]
[350569953,1737966633336,-249.06,0.00010972,2]
[350569955,1737966633346,-254.1,0.00010972,2]
[350569957,1737966633355,-252.25,0.00010972,2]
[350569959,1737966633364,-245.62,0.00010972,2]
[350569961,1737966633373,-250.19,0.00010972,2]
[350569963,1737966633383,-247.73,0.00010972,2]
[350569965,1737966633392,-250.4,0.00010972,2]
[350569967,1737966633401,-5752.99526399,0.0001099,2]
[350569969,1737966633410,-245.31,0.00011007,2]
[350569971,1737966633419,-246.16,0.00011007,2]
[350569973,1737966633428,-247.41,0.00011007,2]
[350569975,1737966633437,-246.61,0.00011007,2]
[350569977,1737966633448,-254.71,0.00011007,2]
[350569979,1737966633458,-249.73,0.00011007,2]
[350569981,1737966633467,-252.52,0.00011007,2]
[350569983,1737966633476,-250.0,0.00011026,2]
[350569985,1737966633485,-714.53459916,0.00011099,2]
[350569987,1737966633495,-714.53459907,0.00011099,2]
[350569988,1737966633507,-714.53459907,0.00011099,2]
[350569991,1737966633516,-4644.12315809,0.00011099,2]
[350569992,1737966633526,-4644.123158,0.00011099,2]
[350569994,1737966633535,-714.53459907,0.0001111,2]
[350569996,1737966633545,-534.21211488,0.00011133,2]
[350569998,1737966633555,-1045.06,0.00011185,2]
[350570000,1737966633564,-714.53459907,0.00011242,2]
[350570002,1737966633574,-500.0,0.0001128,2]
[350570004,1737966633583,-620.99,0.0001128,2]
[350570006,1737966633593,-500.0,0.0001128,2]
[350570008,1737966633602,-500.0,0.0001128,2]
[350570010,1737966633611,-500.0,0.0001128,2]
[350570012,1737966633621,-500.0,0.0001128,2]
[350570014,1737966633631,-500.0,0.0001128,2]
[350570016,1737966633640,-500.0,0.0001128,2]
[350570018,1737966633650,-500.0,0.0001128,2]
[350570020,1737966633659,-500.0,0.0001128,2]
[350570022,1737966633668,-500.0,0.0001128,2]
[350570024,1737966633678,-500.0,0.0001128,2]
[350570026,1737966633688,-500.0,0.0001128,2]
[350570028,1737966633697,-500.0,0.0001128,2]
[350570030,1737966633707,-500.0,0.0001128,2]
[350570032,1737966633716,-500.0,0.0001128,2]
[350570034,1737966633725,-500.0,0.0001128,2]
[350570036,1737966633735,-24336.99,0.00011281,2]
[350570038,1737966633744,-1762.9,0.00011281,2]
[350570040,1737966633754,-179.22691947,0.00011335,2]
[350570042,1737966633766,-714.53459907,0.00011373,2]
[350570044,1737966633776,-34471.0,0.000115,2]
[350570046,1737966633786,-714.53459907,0.00011505,2]
[350570048,1737966633796,-430.93306688,0.00011512,2]
[350570050,1737966633805,-5359.36364128,0.000116,2]
[350570052,1737966633815,-714.53459907,0.00011637,2]
[350570054,1737966633825,-1000.0,0.00011687,2]
[350570056,1737966633835,-250.91,0.00011741,2]
[350570058,1737966633844,-622.824514,0.0001176,2]
[350570060,1737966633854,-714.53459907,0.00011768,2]
[350570062,1737966633864,-66208.6913,0.00011776,2]
[350570064,1737966633873,-247.82,0.00011777,2]
[350570066,1737966633884,-251.58,0.00011777,2]
[350570068,1737966633894,-1000.0,0.00011778,2]
[350570070,1737966633903,-2321.5845,0.00011778,2]
[350570072,1737966633913,-538.0,0.0001178,2]
[350570074,1737966633923,-23126.0,0.0001178,2]
[350570076,1737966633933,-638.0,0.0001178,2]
[350570078,1737966633943,-150.0,0.0001178,2]
[350570080,1737966633953,-1356.0,0.000118,2]
[350570082,1737966633962,-389.90854661,0.00011826,2]
[350570084,1737966633971,-389.90854661,0.00011832,2]
[350570086,1737966633981,-3477.47088139,0.00011834,2]
[350570088,1737966633991,-389.90854661,0.00011836,2]
[350570090,1737966634001,-3477.47088139,0.00011846,2]
[350570092,1737966634013,-3477.47088139,0.00011849,2]
[350570094,1737966634023,-19167.18212997,0.00011852,2]
[350570096,1737966634032,-500.4532298,0.00011855,2]
[350570098,1737966634042,-19167.18212997,0.00011856,2]
[350570100,1737966634052,-500.0,0.00011858,2]
[350570102,1737966634062,-500.0,0.00011858,2]
[350570104,1737966634073,-500.0,0.00011858,2]
[350570106,1737966634084,-500.0,0.00011858,2]
[350570108,1737966634093,-500.0,0.00011858,2]
[350570109,1737966634103,-500.0,0.00011858,2]
[350570111,1737966634113,-500.0,0.00011858,2]
[350570114,1737966634123,-500.0,0.00011858,2]
[350570115,1737966634132,-500.0,0.00011858,2]
[350570117,1737966634142,-631.67,0.00011858,2]
[350570119,1737966634152,-500.0,0.00011858,2]
[350570121,1737966634161,-500.0,0.00011858,2]
[350570123,1737966634170,-500.0,0.00011858,2]
[350570125,1737966634179,-500.0,0.00011858,2]
[350570127,1737966634189,-500.0,0.00011858,2]
[350570129,1737966634198,-500.0,0.00011858,2]
[350570131,1737966634207,-1739.14,0.00011858,2]
[350570133,1737966634217,-768.66,0.00011858,2]
[350570135,1737966634227,-3477.47088139,0.00011867,2]
[350570137,1737966634236,-19167.18212997,0.00011868,2]
[350570139,1737966634248,-254.63777936,0.0001187,2]
[350570141,1737966634258,-201.50278751,0.0001187,2]
[350570143,1737966634268,-200.0,0.0001187,2]
[350570145,1737966634278,-201.50278751,0.00011873,2]
[350570147,1737966634287,-201.50278751,0.00011874,2]
[350570149,1737966634297,-500.0,0.00011875,2]
[350570151,1737966634305,-620.99,0.00011875,2]
[350570153,1737966634315,-500.0,0.00011875,2]
[350570154,1737966634324,-500.0,0.00011875,2]
[350570155,1737966634333,-500.0,0.00011875,2]
[350570156,1737966634343,-500.0,0.00011875,2]
[350570157,1737966634352,-500.0,0.00011875,2]
[350570158,1737966634362,-500.0,0.00011875,2]
[350570159,1737966634371,-500.0,0.00011875,2]
[350570160,1737966634380,-500.0,0.00011875,2]
[350570161,1737966634389,-500.0,0.00011875,2]
[350570163,1737966634399,-500.0,0.00011875,2]
[350570165,1737966634410,-500.0,0.00011875,2]
[350570167,1737966634424,-500.0,0.00011875,2]
[350570170,1737966634435,-410.69290535,0.00011875,2]
[350570171,1737966634445,-151.171381,0.00011876,2]
[350570174,1737966634455,-151.171381,0.00011876,2]
[350570175,1737966634465,-500.0,0.00011876,2]
[350570177,1737966634475,-500.0,0.00011876,2]
[350570179,1737966634486,-500.0,0.00011876,2]
[350570182,1737966634496,-500.0,0.00011876,2]
[350570184,1737966634509,-500.0,0.00011876,2]
[350570185,1737966634520,-500.0,0.00011876,2]
[350570187,1737966634529,-502.38346633,0.00011876,2]
[350570189,1737966634539,-500.0,0.00011876,2]
[350570191,1737966634549,-500.0,0.00011876,2]
[350570193,1737966634559,-500.0,0.00011876,2]
[350570195,1737966634569,-500.0,0.00011876,2]
[350570197,1737966634578,-500.0,0.00011876,2]
[350570200,1737966634588,-500.0,0.00011876,2]
[350570201,1737966634598,-414.70056411,0.00011876,2]
[350570203,1737966634608,-500.0,0.00011876,2]
[350570205,1737966634617,-500.0,0.00011876,2]
[350570207,1737966634627,-517.62319948,0.00011876,2]
[350570209,1737966634636,-500.0,0.00011876,2]
[350570211,1737966634645,-500.0,0.00011876,2]
[350570213,1737966634654,-500.0,0.00011876,2]
[350570215,1737966634664,-500.0,0.00011876,2]
[350570217,1737966634673,-500.0,0.00011876,2]
[350570219,1737966634683,-500.0,0.00011876,2]
[350570221,1737966634692,-500.0,0.00011876,2]
[350570223,1737966634702,-500.0,0.00011876,2]
[350570225,1737966634712,-500.0,0.00011876,2]
[350570227,1737966634721,-500.0,0.00011876,2]
[350570229,1737966634731,-500.0,0.00011876,2]
[350570231,1737966634740,-500.0,0.00011876,2]
[350570233,1737966634749,-297.25,0.00011876,2]
[350570235,1737966634762,-500.0,0.00011876,2]
[350570237,1737966634772,-500.0,0.00011876,2]
[350570239,1737966634781,-500.0,0.00011876,2]
[350570241,1737966634790,-500.0,0.00011876,2]
[350570243,1737966634800,-500.0,0.00011876,2]
[350570244,1737966634810,-500.0,0.00011876,2]
[350570246,1737966634820,-500.0,0.00011876,2]
[350570248,1737966634830,-500.0,0.00011876,2]
[350570251,1737966634840,-506.92745859,0.00011876,2]
[350570253,1737966634851,-500.0,0.00011876,2]
[350570255,1737966634860,-500.0,0.00011876,2]
[350570256,1737966634872,-500.0,0.00011876,2]
[350570258,1737966634882,-500.0,0.00011876,2]
[350570261,1737966634892,-500.0,0.00011876,2]
[350570263,1737966634902,-500.0,0.00011876,2]
[350570264,1737966634912,-500.0,0.00011876,2]
[350570267,1737966634922,-500.0,0.00011876,2]
[350570268,1737966634931,-500.0,0.00011876,2]
[350570270,1737966634940,-500.0,0.00011876,2]
[350570272,1737966634950,-451.48733502,0.00011876,2]
[350570274,1737966634959,-500.0,0.00011876,2]
[350570276,1737966634969,-500.0,0.00011876,2]
[350570278,1737966634982,-500.0,0.00011876,2]
[350570280,1737966634991,-500.0,0.00011876,2]
[350570282,1737966635001,-500.0,0.00011876,2]
[350570284,1737966635013,-500.0,0.00011876,2]
[350570287,1737966635022,-500.0,0.00011876,2]
[350570288,1737966635031,-508.82841558,0.00011876,2]
[350570290,1737966635040,-483.41353044,0.00011876,2]
[350570292,1737966635049,-500.0,0.00011876,2]